bitfinex-derivatives/quotes_SOLF0:USTF0_20260213
["timestamp","ask_amount","ask_price","bid_price","bid_amount"]
[1770979483607,11.2205,80.271,80.229,5.50953494]
[1770979483805,5.22300533,80.285,80.231,5.50953494]
[1770979484010,5.22300533,80.285,80.241,5.50953494]
[1770979484812,11.2186,80.284,80.244,5.50953494]
[1770979485007,5.22300533,80.285,80.244,5.50953494]
[1770979485213,5.22300533,80.297,80.244,5.50953494]
[1770979486005,5.22300533,80.297,80.251,5.50953494]
[1770979486211,3.18022936,80.3,80.251,5.50953494]
[1770979486509,5.22300533,80.309,80.251,5.50953494]
[1770979487718,11.2163,80.3,80.261,11.2217]
[1770979488318,3.18022936,80.3,80.251,5.50953494]
[1770979489811,11.2165,80.299,80.256,5.50953494]
[1770979490326,11.2173,80.294,80.256,5.50953494]
[1770979496016,11.2153,80.308,80.266,5.50953494]
[1770979496221,11.2153,80.308,80.271,5.50953494]
[1770979500529,11.2141,80.316,80.28,3.18022936]
[1770979500718,11.2141,80.316,80.281,5.22352443]
[1770979502825,11.2149,80.311,80.281,5.22352443]
[1770979503423,5.15034998,80.314,80.281,5.22352443]
[1770979504232,16.36484998,80.313,80.277,11.2195]
[1770979504925,5.15034998,80.313,80.282,11.2187]
[1770979506330,5.15034998,80.313,80.277,5.22352443]
[1770979507329,5.15034998,80.311,80.276,11.2196]
[1770979507632,5.15034998,80.309,80.266,16.44442443]
[1770979507826,5.15034998,80.309,80.26,3.18022936]
[1770979507827,5.15034998,80.321,80.267,5.22352443]
[1770979508132,5.15034998,80.321,80.281,5.22352443]
[1770979508729,5.15034998,80.321,80.288,11.218]
[1770979509033,5.15034998,80.332,80.29,8.40375379]
[1770979509633,5.15034998,80.332,80.29,5.22352443]
[1770979510433,11.2129,80.325,80.29,5.22352443]
[1770979512438,3.18022936,80.33,80.284,11.2186]
[1770979512439,16.36364998,80.322,80.284,11.2186]
[1770979513841,11.2139,80.318,80.284,11.2186]
[1770979514039,5.15034998,80.321,80.284,11.2186]
[1770979515533,5.15034998,80.321,80.288,11.2179]
[1770979516137,5.15034998,80.321,80.288,16.44142443]
[1770979517345,5.15034998,80.321,80.293,11.2172]
[1770979517637,5.15034998,80.347,80.301,5.22352443]
[1770979517842,5.15034998,80.347,80.304,5.22352443]
[1770979518843,11.211,80.339,80.304,5.22352443]
[1770979521141,11.2119,80.333,80.304,5.22352443]
[1770979522548,11.2119,80.333,80.29,3.18022936]
[1770979522549,5.15034998,80.332,80.293,5.22352443]
[1770979523145,5.15034998,80.332,80.3,11.2163]
[1770979523744,5.15034998,80.343,80.307,5.22352443]
[1770979525853,11.2105,80.342,80.307,5.22352443]
[1770979526350,5.15034998,80.343,80.309,11.2149]
[1770979526853,5.15034998,80.355,80.311,5.22352443]
[1770979527253,5.15034998,80.369,80.321,5.22352443]
[1770979527850,5.15034998,80.359,80.31,3.17611644]
[1770979528445,5.15034998,80.359,80.311,5.22352443]
[1770979528648,16.35884998,80.356,80.317,11.2139]
[1770979528848,3.17611644,80.35,80.311,5.22352443]
[1770979529049,5.15034998,80.349,80.311,5.22352443]
[1770979529250,5.15034998,80.349,80.313,11.2144]
[1770979529648,5.15034998,80.349,80.311,5.22352443]
[1770979529848,5.15034998,80.347,80.306,11.2155]
[1770979530447,5.15034998,80.339,80.287,5.22352443]
[1770979530653,5.15034998,80.339,80.29,3.17611644]
[1770979531042,11.2113,80.337,80.301,4.79595244]
[1770979531251,4.84762075,80.36,80.321,4.79595244]
[1770979531450,4.84762075,80.379,80.33,3.17611644]
[1770979532050,11.207,80.368,80.322,11.2132]
[1770979532352,4.84762075,80.359,80.308,4.79595244]
[1770979532552,8.02373719,80.35,80.308,4.79595244]
[1770979533054,4.84762075,80.339,80.296,4.79595244]
[1770979533254,3.17611644,80.33,80.284,4.79595244]
[1770979533451,4.84762075,80.339,80.291,4.79595244]
[1770979535961,4.84762075,80.337,80.294,11.2172]
[1770979537255,4.62327919,80.334,80.291,4.79595244]
[1770979538858,3.17611644,80.34,80.291,4.79595244]
[1770979538859,4.62327919,80.332,80.291,4.79595244]
[1770979539162,4.62327919,80.332,80.292,5.05509984]
[1770979540257,22.4094,80.384,80.264,22.4426]
[1770979540258,4.62327919,80.357,80.31,3.17611644]
[1770979540462,4.62327919,80.357,80.311,5.05509984]
[1770979540758,15.83167919,80.357,80.311,5.05509984]
[1770979541657,3.17611644,80.36,80.299,15.1085979]
[1770979541658,4.62327919,80.346,80.299,15.1085979]
[1770979541854,4.62327919,80.346,80.297,5.05509984]
[1770979542252,11.2109,80.339,80.298,11.2166]
[1770979543056,4.62327919,80.339,80.298,11.2166]
[1770979544558,4.62327919,80.339,80.301,11.2161]
[1770979545464,15.83457919,80.336,80.299,5.05509984]
[1770979545860,4.62327919,80.335,80.299,5.05509984]
[1770979546361,4.62327919,80.349,80.301,5.05509984]
[1770979546955,11.2105,80.342,80.303,11.2159]
[1770979547160,15.83377919,80.342,80.303,11.2159]
[1770979547363,15.83377919,80.342,80.303,16.27099984]
[1770979548661,3.17611644,80.33,80.291,5.05509984]
[1770979548868,3.17611644,80.34,80.291,5.05509984]
[1770979549260,11.2115,80.335,80.298,5.05509984]
[1770979550364,22.414,80.367,80.303,16.27099984]
[1770979550365,11.2101,80.345,80.303,16.27099984]
[1770979550565,11.2101,80.345,80.304,5.05509984]
[1770979551367,11.2101,80.345,80.305,11.2156]
[1770979551766,99.36,80.373,80.3,3.17611644]
[1770979551767,11.2085,80.356,80.306,5.05509984]
[1770979551970,11.2085,80.356,80.311,5.05509984]
[1770979552766,11.2085,80.356,80.316,11.214]
[1770979552965,15.83177919,80.356,80.316,11.214]
[1770979553765,4.62327919,80.355,80.316,11.214]
[1770979556575,4.62327919,80.355,80.321,11.2133]
[1770979556972,4.62327919,80.355,80.311,5.05509984]
[1770979557873,4.62327919,80.355,80.328,11.2124]
[1770979559576,4.62327919,80.355,80.322,11.2133]
[1770979560581,15.83047919,80.366,80.327,16.12824631]
[1770979561177,4.62327919,80.366,80.338,11.211]
[1770979562070,4.62327919,80.366,80.328,4.91574631]
[1770979562677,4.62327919,80.366,80.335,11.2113]
[1770979564578,4.62327919,80.366,80.329,11.2123]
[1770979565082,4.62327919,80.366,80.334,11.2115]
[1770979565384,4.51509586,80.359,80.317,4.91574631]
[1770979565770,4.51509586,80.359,80.321,4.91574631]
[1770979566883,4.51509586,80.359,80.322,11.2132]
[1770979568084,4.51509586,80.359,80.323,4.91574631]
[1770979568284,4.51509586,80.359,80.326,4.91574631]
[1770979569181,18.8978123,80.37,80.328,4.91574631]
[1770979569384,4.51509586,80.37,80.328,4.91574631]
[1770979570282,4.51509586,80.37,80.272,174.5365]
[1770979570283,3.17611644,80.34,80.306,4.91574631]
[1770979570575,4.51509586,80.349,80.306,4.91574631]
[1770979570777,11.2098,80.347,80.306,4.91574631]
[1770979570984,124.65213683,80.636,80.321,4.91574631]
[1770979570985,4.51509586,80.379,80.321,4.91574631]
[1770979571181,4.51509586,80.359,80.309,15.1085979]
[1770979571483,4.51509586,80.349,80.304,4.91574631]
[1770979572181,4.51509586,80.339,80.281,4.91574631]
[1770979572884,15.72629586,80.337,80.289,4.91574631]
[1770979573077,4.51509586,80.336,80.289,4.91574631]
[1770979573788,3.17611644,80.32,80.277,16.13524631]
[1770979573982,7.6912123,80.32,80.277,16.13524631]
[1770979574379,4.51509586,80.319,80.277,4.91574631]
[1770979575889,11.214,80.317,80.277,4.91574631]
[1770979576588,4.51509586,80.316,80.277,4.91574631]
[1770979577092,3.17611644,80.31,80.277,4.91574631]
[1770979577286,22.4186,80.351,80.253,127.02]
[1770979577287,3.17611644,80.34,80.281,4.91574631]
[1770979577488,3.17611644,80.34,80.291,4.91574631]
[1770979578586,3.17611644,80.34,80.3,11.2163]
[1770979578788,4.51509586,80.343,80.301,4.91574631]
[1770979579591,3.17611644,80.34,80.289,4.91574631]
[1770979579793,4.51509586,80.329,80.289,4.91574631]
[1770979580189,4.51509586,80.319,80.277,4.91574631]
[1770979581192,3.17611644,80.33,80.286,4.91574631]
[1770979581487,4.51509586,80.319,80.271,4.91574631]
[1770979582890,4.51509586,80.319,80.274,11.2199]
[1770979583689,4.51509586,80.319,80.277,4.91574631]
[1770979583889,4.51509586,80.329,80.277,4.91574631]
[1770979584191,11.2129,80.325,80.28,11.2191]
[1770979584389,11.2129,80.325,80.247,22.94793426]
[1770979584390,4.51509586,80.329,80.281,4.91574631]
[1770979584591,4.51509586,80.309,80.26,3.17611644]
[1770979584794,11.2154,80.307,80.263,4.91574631]
[1770979585188,15.73049586,80.307,80.263,4.91574631]
[1770979585386,4.51509586,80.297,80.254,11.47660326]
[1770979585582,4.51509586,80.297,80.252,4.91574631]
[1770979585984,4.51509586,80.297,80.261,11.2217]
[1770979586289,4.51509586,80.297,80.252,4.91574631]
[1770979586491,4.51509586,80.309,80.27,3.17818708]
[1770979586691,4.51509586,80.309,80.261,4.91574631]
[1770979587891,11.2154,80.307,80.263,11.2215]
[1770979588092,11.2154,80.307,80.263,16.13724631]
[1770979588289,11.2154,80.307,80.264,4.91574631]
[1770979588687,15.73169586,80.298,80.257,11.47660326]
[1770979588891,4.51509586,80.297,80.255,11.2226]
[1770979590597,4.51509586,80.297,80.26,3.17818708]
[1770979591892,4.51509586,80.297,80.261,4.58199539]
[1770979593589,4.51509586,80.297,80.26,3.17818708]
[1770979593590,4.54261698,80.311,80.271,4.58199539]
[1770979593796,22.417,80.357,80.29,3.17818708]
[1770979593797,4.54261698,80.329,80.29,3.17818708]
[1770979594590,15.75501698,80.329,80.291,11.2175]
[1770979594792,4.54261698,80.329,80.29,7.76018247]
[1770979594992,4.54261698,80.342,80.3,3.17818708]
[1770979595298,4.54261698,80.342,80.31,3.17818708]
[1770979595497,4.54261698,80.342,80.303,15.65708684]
[1770979596801,11.2108,80.34,80.303,15.65708684]
[1770979596998,4.54261698,80.342,80.303,4.44118684]
[1770979597204,4.54261698,80.342,80.309,11.215]
[1770979597602,4.54261698,80.342,80.303,4.44118684]
[1770979598804,4.64097865,80.356,80.32,3.17818708]
[1770979599205,4.64097865,80.356,80.321,11.2133]
[1770979600800,4.64097865,80.364,80.328,11.2124]
[1770979600998,4.64097865,80.364,80.33,3.17818708]
[1770979601809,4.64097865,80.376,80.33,7.61937392]
[1770979602804,4.64097865,80.376,80.331,11.212]
[1770979603303,4.64097865,80.374,80.331,11.212]
[1770979606809,4.64097865,80.374,80.349,11.2094]
[1770979607012,4.64097865,80.374,80.34,3.17818708]
[1770979607212,4.64097865,80.374,80.331,4.44118684]
[1770979607613,4.64097865,80.374,80.321,4.44118684]
[1770979607914,4.64097865,80.374,80.34,3.17818708]
[1770979608802,4.64097865,80.374,80.341,11.2105]
[1770979609809,4.64097865,80.37,80.329,11.2122]
[1770979610208,4.64097865,80.368,80.329,11.2122]
[1770979610409,4.64097865,80.368,80.32,3.17818708]
[1770979611715,11.2078,80.361,80.32,3.17818708]
[1770979612516,4.64097865,80.36,80.32,3.17818708]
[1770979612712,4.64097865,80.36,80.319,4.44118684]
[1770979613110,4.64097865,80.36,80.328,11.2124]
[1770979613412,4.64097865,80.36,80.321,4.44118684]
[1770979613612,4.64097865,80.359,80.31,3.17818708]
[1770979614511,141.92,80.375,80.3,14.39448708]
[1770979614512,4.64097865,80.345,80.3,14.39448708]
[1770979615718,11.2111,80.338,80.3,14.39448708]
[1770979615919,4.64097865,80.337,80.3,14.39448708]
[1770979617212,3.17818708,80.35,80.303,4.44118684]
[1770979617213,11.2101,80.345,80.303,4.44118684]
[1770979619414,11.2109,80.339,80.305,11.2156]
[1770979620018,99.36,80.369,80.264,126.16]
[1770979620019,4.64097865,80.336,80.29,3.17818708]
[1770979620222,4.64097865,80.336,80.285,4.44118684]
[1770979620519,4.64097865,80.329,80.285,4.44118684]
[1770979620721,4.20288845,80.314,80.27,3.17818708]
[1770979620918,4.20288845,80.309,80.26,7.43235311]
[1770979621317,4.20288845,80.309,80.262,11.2216]
[1770979621820,4.20288845,80.292,80.25,3.17818708]
[1770979622123,22.4247,80.329,80.24,3.17818708]
[1770979622124,4.20288845,80.289,80.24,3.17818708]
[1770979622920,4.20288845,80.283,80.241,4.25416603]
[1770979625526,4.20288845,80.283,80.243,11.2243]
[1770979627632,4.20288845,80.283,80.25,11.2233]
[1770979627835,4.20288845,80.283,80.243,4.25416603]
[1770979628928,4.20288845,80.283,80.243,15.47836603]
[1770979629433,4.20288845,80.283,80.246,11.2238]
[1770979629932,4.20288845,80.283,80.25,3.17818708]
[1770979630325,4.20288845,80.296,80.255,4.25416603]
[1770979630530,4.20288845,80.296,80.26,3.17818708]
[1770979630734,4.20288845,80.296,80.255,4.25416603]
[1770979631736,4.20288845,80.296,80.257,11.2222]
[1770979631933,4.20288845,80.294,80.257,11.2222]
[1770979632336,3.17818708,80.31,80.259,11.222]
[1770979632539,4.20288845,80.309,80.261,4.25416603]
[1770979633030,11.217,80.296,80.261,4.25416603]
[1770979633423,11.217,80.296,80.228,99.4]
[1770979633424,11.2147,80.312,80.271,4.25416603]
[1770979633627,11.2147,80.312,80.215,52.4885979]
[1770979633628,4.20288845,80.319,80.281,4.25416603]
[1770979633828,4.20288845,80.319,80.27,3.17818708]
[1770979634634,15.41858845,80.305,80.266,4.25416603]
[1770979636032,4.20288845,80.301,80.256,11.2224]
[1770979636335,4.20288845,80.301,80.26,3.17818708]
[1770979636737,4.20288845,80.301,80.261,11.2217]
[1770979637936,11.2173,80.294,80.26,3.17818708]
[1770979639933,3.17818708,80.31,80.231,105.88]
[1770979639934,4.20288845,80.313,80.271,4.25416603]
[1770979640737,4.20288845,80.313,80.276,11.2196]
[1770979642133,4.20288845,80.313,80.28,3.17818708]
[1770979642439,22.4189,80.35,80.29,3.17818708]
[1770979642440,4.20288845,80.325,80.29,3.17818708]
[1770979643243,4.20288845,80.325,80.281,4.25416603]
[1770979643948,11.2131,80.323,80.288,11.2179]
[1770979645656,15.41598845,80.323,80.288,11.2179]
[1770979646266,11.48485516,80.399,80.301,4.25416603]
[1770979646563,4.20288845,80.351,80.31,7.43109002]
[1770979647855,4.20288845,80.351,80.314,11.2143]
[1770979650467,3.17692399,80.36,80.304,11.2156]
[1770979650468,4.20288845,80.345,80.304,11.2156]
[1770979651461,4.20288845,80.345,80.304,15.55131746]
[1770979651766,4.20288845,80.345,80.306,11.2154]
[1770979652571,4.20288845,80.345,80.31,3.17692399]
[1770979653563,15.3608774,80.356,80.315,11.2141]
[1770979654070,4.1522774,80.355,80.315,11.2141]
[1770979654368,4.1522774,80.355,80.311,4.33571746]
[1770979654369,4.1522774,80.355,80.321,11.2134]
[1770979654958,11.2086,80.356,80.322,4.33571746]
[1770979655956,15.64721463,80.356,80.322,4.33571746]
[1770979656160,4.43861463,80.355,80.32,3.17692399]
[1770979656561,4.43861463,80.352,80.314,11.2144]
[1770979656771,4.43861463,80.352,80.31,7.37582324]
[1770979656972,4.43861463,80.352,80.31,3.17692399]
[1770979657969,4.43861463,80.348,80.31,3.17692399]
[1770979658468,4.43861463,80.348,80.311,4.19889925]
[1770979658665,4.43861463,80.36,80.32,3.17692399]
[1770979659368,4.43861463,80.36,80.322,11.2132]
[1770979659369,11.2082,80.359,80.322,11.2132]
[1770979659574,4.43861463,80.36,80.32,3.17692399]
[1770979659870,4.43861463,80.36,80.311,4.19889925]
[1770979660771,11.2091,80.352,80.314,11.2143]
[1770979662965,4.43861463,80.36,80.311,4.19889925]
[1770979662966,4.43861463,80.351,80.311,4.19889925]
[1770979663368,4.43861463,80.349,80.3,3.17692399]
[1770979664375,4.43861463,80.341,80.305,11.2156]
[1770979664574,4.43861463,80.341,80.301,4.19889925]
[1770979664771,4.43861463,80.341,80.29,7.37582324]
[1770979664969,4.43861463,80.341,80.291,4.19889925]
[1770979665876,11.2117,80.333,80.298,11.2165]
[1770979666073,4.43861463,80.332,80.291,4.19889925]
[1770979666273,4.43861463,80.329,80.28,3.17692399]
[1770979666963,4.43861463,80.322,80.284,11.2184]
[1770979668778,11.2136,80.32,80.284,11.2184]
[1770979668980,15.65221463,80.32,80.284,11.2184]
[1770979669574,99.36,80.347,80.291,11.2175]
[1770979669575,11.2126,80.327,80.291,11.2175]
[1770979670272,11.2116,80.334,80.292,4.19889925]
[1770979670479,11.2116,80.334,80.27,11.47660326]
[1770979670480,4.43861463,80.333,80.28,7.37582324]
[1770979670673,3.17692399,80.33,80.28,7.37582324]
[1770979670980,4.43861463,80.322,80.284,11.2185]
[1770979673881,11.2134,80.321,80.284,11.2185]
[1770979674482,4.43861463,80.318,80.28,4.19889925]
[1770979674681,4.43861463,80.318,80.274,11.2198]
[1770979675788,4.43861463,80.312,80.274,11.2198]
[1770979676484,4.43861463,80.308,80.27,3.17692399]
[1770979677789,11.2159,80.304,80.27,3.17692399]
[1770979678083,4.43861463,80.304,80.266,11.221]
[1770979678284,4.43861463,80.304,80.26,3.17692399]
[1770979678477,4.43861463,80.304,80.254,11.2227]
[1770979679286,4.43861463,80.304,80.254,15.42159925]
[1770979679587,4.43861463,80.304,80.26,3.17692399]
[1770979679788,11.2175,80.292,80.26,3.17692399]
[1770979680580,4.43861463,80.304,80.27,3.17692399]
[1770979681789,11.2161,80.302,80.27,3.17692399]
[1770979682484,4.43861463,80.304,80.27,3.17692399]
[1770979682683,4.43861463,80.304,80.26,3.17692399]
[1770979683187,4.43861463,80.304,80.25,7.22431915]
[1770979683584,4.43861463,80.304,80.251,4.04739516]
[1770979683785,11.2177,80.291,80.253,11.2228]
[1770979684988,15.3498066,80.289,80.253,11.2228]
[1770979685188,4.1319066,80.288,80.243,11.2242]
[1770979685487,15.3522066,80.272,80.24,3.17692399]
[1770979685695,4.1319066,80.271,80.23,3.17692399]
[1770979686389,4.1319066,80.269,80.23,3.17692399]
[1770979687683,4.1319066,80.269,80.229,11.47660326]
[1770979687888,11.2216,80.263,80.23,3.17692399]
[1770979689191,11.2224,80.257,80.23,3.17692399]
[1770979689497,4.1319066,80.256,80.22,3.17692399]
[1770979689696,4.1319066,80.256,80.215,11.2282]
[1770979689988,4.1319066,80.251,80.213,4.04739516]
[1770979690791,11.2243,80.243,80.21,3.17692399]
[1770979690987,4.1319066,80.251,80.21,3.17692399]
[1770979691791,11.2235,80.249,80.21,3.17692399]
[1770979692395,11.2243,80.244,80.21,3.17692399]
[1770979695698,15.3551066,80.251,80.212,11.2286]
[1770979695893,4.1319066,80.25,80.212,11.2286]
[1770979696294,11.2236,80.248,80.21,3.17692399]
[1770979697899,11.2245,80.242,80.21,3.17692399]
[1770979700595,11.223,80.253,80.22,3.17692399]
[1770979701197,11.222,80.26,80.221,11.2273]
[1770979701403,4.1319066,80.259,80.221,11.2273]
[1770979702305,4.1319066,80.255,80.22,3.17692399]
[1770979703300,4.1319066,80.255,80.215,11.2282]
[1770979703703,4.1319066,80.246,80.21,3.17692399]
[1770979704500,4.1319066,80.242,80.205,11.2295]
[1770979705711,4.1319066,80.232,80.195,4.04739516]
[1770979707210,4.1319066,80.23,80.195,4.04739516]
[1770979708119,4.1319066,80.23,80.196,11.2308]
[1770979708417,4.1319066,80.239,80.2,3.18360281]
[1770979709412,4.1319066,80.237,80.2,3.18360281]
[1770979710111,4.1319066,80.235,80.197,4.04739516]
[1770979710315,4.1319066,80.235,80.19,3.18360281]
[1770979710715,4.1319066,80.235,80.19,7.39879781]
[1770979710916,4.29108496,80.225,80.18,7.39879781]
[1770979711217,4.29108496,80.225,80.181,4.215195]
[1770979711816,11.2278,80.219,80.183,15.447795]
[1770979712019,4.29108496,80.225,80.184,4.215195]
[1770979712318,11.2256,80.234,80.2,3.18360281]
[1770979712814,15.51668496,80.234,80.2,3.18360281]
[1770979713015,11.2241,80.245,80.21,3.18360281]
[1770979713814,4.29108496,80.242,80.204,4.215195]
[1770979714014,4.29108496,80.242,80.192,4.215195]
[1770979714220,4.29108496,80.239,80.192,4.215195]
[1770979715522,4.29108496,80.239,80.18,3.18360281]
[1770979715523,4.29108496,80.239,80.18,7.31745333]
[1770979715723,15.50821412,80.224,80.183,11.2326]
[1770979716824,4.28121412,80.223,80.183,11.2326]
[1770979717523,4.28121412,80.218,80.181,4.13385052]
[1770979717724,4.28121412,80.218,80.148,485.2728024]
[1770979717725,4.28121412,80.218,80.171,4.13385052]
[1770979718224,4.28121412,80.204,80.162,11.2355]
[1770979718625,4.28121412,80.204,80.162,15.36935052]
[1770979718822,4.28121412,80.204,80.163,4.13385052]
[1770979719629,11.2299,80.203,80.163,4.13385052]
[1770979719826,4.28121412,80.202,80.163,4.13385052]
[1770979720331,4.28121412,80.202,80.165,4.13385052]
[1770979721327,4.28121412,80.202,80.167,11.2349]
[1770979722129,3.18360281,80.2,80.157,11.2363]
[1770979722332,4.28121412,80.199,80.157,11.2363]
[1770979723837,11.2313,80.193,80.157,11.2363]
[1770979724234,22.4507,80.236,80.171,4.13385052]
[1770979724235,4.28121412,80.213,80.171,4.13385052]
[1770979725535,11.2274,80.221,80.181,4.13385052]
[1770979725726,4.28121412,80.225,80.181,4.13385052]
[1770979726636,11.2289,80.21,80.181,4.13385052]
[1770979727033,11.2289,80.21,80.175,11.2338]
[1770979727434,4.28121412,80.211,80.169,4.13385052]
[1770979727833,4.28121412,80.211,80.17,3.18360281]
[1770979728035,4.28121412,80.211,80.17,7.31745333]
[1770979728434,4.28121412,80.224,80.171,4.13385052]
[1770979729236,11.2287,80.212,80.171,4.13385052]
[1770979730746,11.2287,80.212,80.173,4.13385052]
[1770979731736,11.2287,80.212,80.175,11.2337]
[1770979732535,11.2287,80.212,80.175,15.36755052]
[1770979733445,4.28121412,80.235,80.191,4.13385052]
[1770979734834,11.2256,80.234,80.196,4.13385052]
[1770979735355,4.28121412,80.222,80.182,4.13385052]
[1770979736047,11.2274,80.221,80.183,11.2326]
[1770979737744,15.50861412,80.221,80.183,11.2326]
[1770979737946,4.28121412,80.218,80.183,11.2326]
[1770979738342,11.2286,80.213,80.182,4.13385052]
[1770979738549,4.28121412,80.218,80.182,4.13385052]
[1770979738748,4.28121412,80.218,80.17,15.61045378]
[1770979738947,4.28121412,80.218,80.18,3.18360281]
[1770979739250,4.28121412,80.218,80.171,4.13385052]
[1770979739850,11.2285,80.213,80.172,15.36805052]
[1770979740345,4.28121412,80.218,80.17,14.66020607]
[1770979740346,4.28121412,80.218,80.173,4.13385052]
[1770979740540,135.28,80.249,80.19,3.18360281]
[1770979740541,4.28121412,80.232,80.19,3.18360281]
[1770979740747,4.28121412,80.232,80.191,4.11313873]
[1770979741143,4.28121412,80.232,80.195,11.231]
[1770979741944,4.28121412,80.232,80.2,3.18360281]
[1770979742147,11.2257,80.234,80.201,4.11313873]
[1770979746851,3.91568299,80.244,80.195,11.231]
[1770979746852,11.2243,80.243,80.21,7.29674154]
[1770979750854,11.2243,80.243,80.21,4.11313873]
[1770979751554,11.2234,80.25,80.21,4.11313873]
[1770979751746,11.2234,80.25,80.211,4.11313873]
[1770979751948,3.91568299,80.255,80.211,4.11313873]
[1770979752353,15.13838299,80.255,80.217,11.2279]
[1770979752949,15.13838299,80.255,80.218,4.11313873]
[1770979753957,3.91568299,80.245,80.208,11.47660326]
[1770979754153,3.91568299,80.245,80.207,4.11313873]
[1770979754555,3.91568299,80.244,80.207,4.11313873]
[1770979755262,3.91568299,80.241,80.208,11.2291]
[1770979758467,3.91568299,80.241,80.214,11.2283]
[1770979761564,3.91568299,80.241,80.219,11.2275]
[1770979761765,3.91568299,80.252,80.219,11.2275]
[1770979763461,11.2214,80.264,80.227,15.33953873]
[1770979763656,3.91568299,80.263,80.227,15.33953873]
[1770979764262,3.91568299,80.259,80.22,11.2274]
[1770979764565,3.91568299,80.259,80.215,4.11313873]
[1770979765360,11.2237,80.248,80.216,11.2279]
[1770979766961,3.91568299,80.249,80.216,11.2279]
[1770979768363,3.91568299,80.268,80.221,4.11313873]
[1770979769768,11.2215,80.263,80.227,11.2264]
[1770979770169,15.13718299,80.263,80.227,11.2264]
[1770979770470,15.13718299,80.263,80.231,4.11313873]
[1770979771672,11.2223,80.258,80.222,11.2271]
[1770979772472,11.2223,80.258,80.222,15.10157472]
[1770979772969,3.91568299,80.263,80.227,15.10097472]
[1770979773172,3.91568299,80.263,80.23,3.1824345]
[1770979773368,3.89234921,80.276,80.234,3.87447472]
[1770979774971,3.89234921,80.275,80.236,11.2252]
[1770979775472,215.38,80.337,80.222,3.9800526]
[1770979775473,4.1664427,80.265,80.222,3.9800526]
[1770979776873,11.2218,80.261,80.228,11.2263]
[1770979778371,11.2203,80.272,80.236,11.2252]
[1770979779575,15.3867427,80.272,80.236,11.2252]
[1770979780274,4.1664427,80.271,80.236,11.2252]
[1770979782482,4.1664427,80.271,80.229,3.9800526]
[1770979782483,4.1664427,80.268,80.229,3.9800526]
[1770979783781,11.2221,80.259,80.229,3.9800526]
[1770979790187,11.2221,80.259,80.229,15.49493097]
[1770979794789,11.2221,80.259,80.229,3.9800526]
[1770979795489,11.2221,80.259,80.208,22.81100122]
[1770979795490,11.2205,80.271,80.241,3.9800526]
[1770979796788,15.3869427,80.271,80.241,3.9800526]
[1770979798380,11.2184,80.285,80.25,3.1824345]
[1770979798583,4.1664427,80.289,80.251,3.9800526]
[1770979799488,4.1664427,80.289,80.222,22.81100122]
[1770979799489,4.1664427,80.301,80.259,3.9800526]
[1770979799888,11.2176,80.291,80.259,3.9800526]
[1770979800279,4.1664427,80.29,80.259,3.9800526]
[1770979800486,4.1664427,80.29,80.249,3.9800526]
[1770979800989,4.19825605,80.289,80.238,4.06769354]
[1770979801185,11.2205,80.27,80.238,4.06769354]
[1770979801488,4.19825605,80.269,80.23,11.226]
[1770979801687,4.19825605,80.269,80.217,4.06769354]
[1770979802792,4.19825605,80.26,80.222,11.2272]
[1770979803593,11.2203,80.272,80.232,4.06769354]
[1770979803783,4.19825605,80.271,80.232,4.06769354]
[1770979804092,3.1824345,80.27,80.232,4.06769354]
[1770979804296,11.2212,80.266,80.232,4.06769354]
[1770979805490,15.42005605,80.261,80.22,18.47762804]
[1770979805690,15.42005605,80.261,80.221,4.06769354]
[1770979806187,15.42005605,80.261,80.223,4.06769354]
[1770979806593,4.19825605,80.261,80.226,4.06769354]
[1770979806895,11.2208,80.268,80.226,4.06769354]
[1770979807897,11.2208,80.268,80.233,11.2256]
[1770979808397,4.19825605,80.267,80.233,11.2256]
[1770979808593,99.46,80.293,80.2,4.06769354]
[1770979808594,4.19825605,80.259,80.2,4.06769354]
[1770979808797,4.19825605,80.259,80.201,4.06769354]
[1770979809897,4.19825605,80.251,80.209,11.229]
[1770979810097,4.19825605,80.251,80.209,4.06769354]
[1770979810395,4.19825605,80.251,80.211,4.06769354]
[1770979810791,4.19825605,80.264,80.221,4.06769354]
[1770979811688,11.2215,80.263,80.222,11.2272]
[1770979811887,11.2215,80.263,80.221,4.06769354]
[1770979812092,4.19825605,80.279,80.221,4.06769354]
[1770979812288,4.19825605,80.279,80.231,4.06769354]
[1770979813397,4.19825605,80.269,80.231,4.06769354]
[1770979814500,4.19825605,80.269,80.232,4.06769354]
[1770979814997,11.2204,80.272,80.234,4.06769354]
[1770979815501,15.41865605,80.272,80.234,4.06769354]
[1770979815901,4.19825605,80.271,80.234,4.06769354]
[1770979816403,4.19825605,80.267,80.22,4.06769354]